bitfinex-derivatives/quotes_ETHF0:USTF0_20260312
["timestamp","ask_amount","ask_price","bid_price","bid_amount"]
[1773292403394,0.78571169,2025.8,2025.4,7.75915037]
[1773292403688,0.78571169,2025.8,2025.3,17.77775091]
[1773292403893,0.78571169,2025.8,2025.4,0.72587167]
[1773292405092,0.78571169,2025.6,2025.1,7.76392431]
[1773292405398,0.7915857,2025.6,2025.1,0.73064561]
[1773292406792,0.78571169,2025.2,2024.9,8.48502204]
[1773292406986,0.78571169,2025.2,2024.8,0.72587167]
[1773292407897,0.78571169,2025.2,2024.8,0.73194648]
[1773292410397,0.78571169,2025.2,2024.8,0.9758471]
[1773292412793,0.78571169,2025.2,2024.8,0.73194648]
[1773292412996,1.60027081,2025.5,2024.6,10.40630395]
[1773292412997,0.78571169,2025.0,2024.7,0.72587167]
[1773292413396,0.78571169,2025.2,2024.7,0.72587167]
[1773292413899,0.78571169,2025.2,2024.7,0.73220088]
[1773292415604,0.78571169,2025.2,2024.8,0.72587167]
[1773292415799,0.78571169,2025.2,2024.7,0.98115113]
[1773292416903,0.78571169,2025.2,2024.8,0.72587167]
[1773292417902,0.78571169,2025.2,2024.7,0.98115113]
[1773292418505,0.78571169,2025.2,2024.8,0.72587167]
[1773292419599,1.60027081,2025.5,2024.7,0.25527946]
[1773292419600,0.78571169,2025.0,2024.7,0.25527946]
[1773292420404,0.78571169,2025.0,2024.7,0.98115113]
[1773292420605,0.78571169,2025.0,2024.7,0.25527946]
[1773292422009,0.78571169,2025.0,2024.7,0.00632921]
[1773292422306,0.78571169,2025.0,2024.5,0.75207543]
[1773292422611,1.60032081,2025.1,2024.4,0.75207543]
[1773292422612,0.68617526,2024.8,2024.4,0.75207543]
[1773292423410,0.68617526,2024.8,2024.4,0.75622263]
[1773292436726,0.68617526,2024.8,2024.3,0.94164476]
[1773292437727,0.68617526,2024.8,2024.3,0.94610021]
[1773292438824,0.68617526,2024.8,2024.4,0.6961031]
[1773292443631,0.68617526,2024.8,2024.3,0.94610021]
[1773292444233,0.68617526,2024.8,2024.3,0.24999711]
[1773292445231,0.68617526,2024.8,2024.3,0.94610021]
[1773292448028,0.68617526,2024.8,2024.4,0.6961031]
[1773292450931,0.68617526,2024.8,2024.3,0.94610021]
[1773292451528,0.75504039,2024.6,2024.2,0.6961031]
[1773292451733,0.75504039,2024.5,2023.9,8.70672339]
[1773292451936,0.75504039,2024.5,2024.0,0.6961031]
[1773292452738,0.75504039,2024.5,2024.0,0.70209457]
[1773292462840,0.77775328,2024.3,2023.8,0.74572523]
[1773292463043,0.77775328,2024.1,2023.5,0.74572523]
[1773292463847,0.78125835,2024.1,2023.5,0.7503348]
[1773292464750,0.78125835,2024.1,2023.6,0.74572523]
[1773292465546,0.78125835,2024.1,2023.5,0.25069308]
[1773292465737,0.78125835,2024.1,2023.6,0.74572523]
[1773292479963,0.78125835,2024.1,2023.5,0.7503348]
[1773292479964,0.77775328,2023.9,2023.5,0.7503348]
[1773292480161,0.77775328,2023.7,2023.5,0.00460957]
[1773292480553,1.02479328,2023.8,2023.5,0.7503348]
[1773292481262,1.02479328,2023.8,2023.4,0.74572523]
[1773292482265,1.02479328,2023.8,2023.4,0.75191096]
[1773292485966,0.78259623,2023.7,2023.4,0.75191096]
[1773292489369,0.78259623,2023.7,2023.3,1.03593598]
[1773292489768,1.02963623,2023.8,2023.4,0.78547882]
[1773292490165,0.82039204,2023.7,2023.4,0.0036818]
[1773292490362,0.82039204,2023.7,2023.4,0.76236879]
[1773292491465,0.24704,2023.8,2023.4,0.76236879]
[1773292491868,0.82039204,2024.0,2023.4,0.76236879]
[1773292492064,0.82389711,2024.1,2023.4,0.76236879]
[1773292492269,0.82389711,2024.1,2023.5,0.75868699]
[1773292492470,0.82039204,2023.8,2023.4,0.76236879]
[1773292492972,0.82039204,2023.9,2023.4,0.76236879]
[1773292494671,0.82039204,2023.9,2023.3,0.75868699]
[1773292494672,0.82039204,2023.7,2023.3,0.75868699]
[1773292494877,0.82039204,2023.7,2023.2,1.0087114]
[1773292495278,0.82039204,2023.7,2023.3,0.75868699]
[1773292495680,0.82039204,2023.7,2023.3,0.76403387]
[1773292496174,0.82039204,2023.7,2023.3,0.00534688]
[1773292496381,0.82039204,2023.5,2023.2,1.0087114]
[1773292497379,0.82039204,2023.5,2023.2,1.01366357]
[1773292497980,0.82039204,2023.5,2023.0,0.75868699]
[1773292498279,0.82039204,2023.5,2022.9,0.75868699]
[1773292499077,0.82039204,2023.3,2022.9,0.76393559]
[1773292499274,0.82039204,2023.3,2022.7,1.01040498]
[1773292499784,0.82039204,2023.1,2022.7,1.01040498]
[1773292500081,0.82039204,2023.1,2022.8,0.75868699]
[1773292500382,0.82039204,2023.2,2022.8,0.76325613]
[1773292500683,2.17787464,2023.5,2022.8,0.76325613]
[1773292500983,0.82039204,2023.6,2023.1,0.75868699]
[1773292501177,0.82039204,2023.2,2022.9,0.75868699]
[1773292501372,2.17787464,2023.1,2022.8,0.76325613]
[1773292501578,2.42496464,2023.5,2022.8,0.76325613]
[1773292501782,2.42496464,2023.5,2022.9,0.75868699]
[1773292502181,0.82039204,2023.4,2022.9,0.75868699]
[1773292504579,0.82039204,2023.2,2022.8,0.00456914]
[1773292504884,0.82039204,2023.0,2022.8,0.00456914]
[1773292505584,0.82039204,2023.2,2022.8,0.76325613]
[1773292505784,0.82039204,2023.2,2022.8,0.00456914]
[1773292507676,0.82039204,2023.2,2022.8,0.76325613]
[1773292507882,0.82039204,2023.2,2022.8,0.00456914]
[1773292508582,0.82039204,2023.2,2022.8,0.76325613]
[1773292509187,0.82039204,2023.4,2023.0,0.75868699]
[1773292511883,1.06748204,2023.5,2023.0,0.75868699]
[1773292512788,0.82039204,2023.4,2023.0,0.75868699]
[1773292513788,1.3574826,2023.7,2023.0,0.75868699]
[1773292513989,0.82039204,2023.6,2023.0,0.75868699]
[1773292515593,0.82039204,2023.8,2023.4,2.11616959]
[1773292515784,0.82039204,2023.5,2022.9,8.51783736]
[1773292516089,0.82039204,2023.5,2022.9,0.75868699]
[1773292516382,1.3574826,2023.6,2023.1,0.75868699]
[1773292516383,0.82039204,2023.6,2023.1,0.75868699]
[1773292516588,0.82039204,2023.6,2023.2,0.75868699]
[1773292519993,0.00350507,2024.1,2022.9,0.24436479]
[1773292519994,0.82039204,2023.4,2022.9,0.24436479]
[1773292520192,0.82039204,2023.4,2022.9,0.78801852]
[1773292521989,1.3574826,2023.6,2022.9,0.78801852]
[1773292522190,0.75278402,2023.6,2023.1,0.78801852]
[1773292528198,0.75278402,2023.7,2023.1,0.78801852]
[1773292529397,0.75278402,2024.0,2023.3,0.78801852]
[1773292533793,0.75278402,2024.0,2023.5,0.78801852]
[1773292535403,0.00350507,2024.1,2023.7,0.78801852]
[1773292535404,0.75628909,2024.1,2023.7,0.78801852]
[1773292539001,0.75628909,2024.1,2023.6,0.78801852]
[1773292539592,0.75628909,2024.1,2023.8,0.78801852]
[1773292539998,0.75628909,2024.1,2023.6,0.78801852]
[1773292540199,0.75278402,2023.9,2023.4,0.78801852]
[1773292543397,0.75278402,2023.9,2023.5,0.74691664]
[1773292545807,0.75278402,2023.9,2023.4,0.99995547]
[1773292546306,0.75278402,2023.9,2023.5,0.74691664]
[1773292546603,0.00350507,2024.1,2023.5,0.74691664]
[1773292546803,0.69503189,2024.3,2023.9,0.74691664]
[1773292547108,0.69503189,2024.3,2023.7,0.74691664]
[1773292547702,0.70128631,2024.3,2023.7,0.74691664]
[1773292550311,0.69631642,2024.3,2023.9,0.68507485]
[1773292550604,0.24695,2024.6,2023.9,0.68507485]
[1773292550605,0.690062,2024.4,2023.9,0.68507485]
[1773292551608,0.69394699,2024.4,2023.9,0.68507485]
[1773292552312,0.69394699,2024.4,2023.7,8.44422522]
[1773292552510,0.690062,2024.3,2023.8,0.68507485]
[1773292554407,0.690062,2024.3,2023.8,2.04255745]
[1773292554610,0.690062,2024.3,2023.9,0.68507485]
[1773292555204,0.690062,2024.2,2023.6,0.68507485]
[1773292555412,0.690062,2024.0,2023.4,9.463]
[1773292555612,0.690062,2024.0,2023.4,10.14807485]
[1773292556013,0.690062,2024.0,2023.5,0.68507485]
[1773292556812,0.00388499,2024.4,2023.8,0.68507485]
[1773292557012,0.690062,2024.3,2023.8,0.68507485]
[1773292557915,0.690062,2024.2,2023.7,0.68507485]
[1773292561618,0.690062,2024.0,2023.4,8.0037513]
[1773292561821,0.690062,2024.0,2023.4,0.24460093]
[1773292562023,0.690062,2024.0,2023.3,8.44422522]
[1773292562523,0.690062,2024.0,2023.4,0.68507485]
[1773292562721,0.937062,2024.2,2023.4,0.68507485]
[1773292563024,0.937062,2024.2,2023.5,0.68507485]
[1773292563224,0.690062,2024.1,2023.5,0.68507485]
[1773292563424,0.690062,2024.1,2023.6,0.68507485]
[1773292568227,0.690062,2024.1,2023.6,0.92850276]
[1773292568427,0.690062,2024.1,2023.7,0.68507485]
[1773292570324,0.690062,2024.1,2023.6,0.24342791]
[1773292570628,0.690062,2024.1,2023.6,0.68507485]
[1773292573039,0.690062,2024.1,2023.5,0.68507485]
[1773292573235,0.690062,2024.1,2023.4,8.69621385]
[1773292574836,0.690062,2024.1,2023.4,0.93706348]
[1773292575648,0.690062,2024.1,2023.5,0.68507485]
[1773292576740,0.690062,2023.9,2023.4,0.93706348]
[1773292578845,0.690062,2023.9,2023.5,0.68507485]
[1773292579049,0.690062,2023.9,2023.4,0.93706348]
[1773292579241,0.690062,2023.9,2023.5,0.68507485]
[1773292580648,0.690062,2023.9,2023.4,0.97520359]
[1773292581550,0.690062,2023.9,2023.5,0.72321496]
[1773292584444,0.690062,2023.9,2023.4,0.97520359]
[1773292584644,0.70931253,2023.7,2023.1,8.48236533]
[1773292584845,0.70931253,2023.7,2023.1,0.72321496]
[1773292585247,0.70931253,2023.5,2023.1,0.25137122]
[1773292585444,0.70931253,2023.5,2022.9,8.48236533]
[1773292585644,0.70931253,2023.5,2022.9,0.72321496]
[1773292596253,0.24701,2024.1,2023.0,0.75708087]
[1773292596451,0.7449219,2023.7,2023.2,0.75708087]
[1773292599458,0.7449219,2024.0,2023.2,0.75708087]
[1773292600152,0.7449219,2023.8,2023.2,0.75708087]
[1773292603662,0.7449219,2023.8,2023.1,0.95713148]
[1773292603863,0.76650702,2023.6,2023.1,0.70934351]
[1773292610957,0.24705,2023.7,2023.1,0.70934351]
[1773292611369,0.24705,2023.7,2023.2,0.75537526]
[1773292611664,0.96810138,2023.7,2023.2,0.75537526]
[1773292612766,0.24705,2023.7,2023.2,0.75537526]
[1773292613070,0.72105138,2023.9,2023.2,0.75537526]
[1773292613260,0.72105138,2024.0,2023.2,0.75537526]
[1773292613969,0.72105138,2024.0,2023.3,0.75537526]
[1773292619573,0.72105138,2023.8,2023.3,0.75537526]
[1773292620581,0.72105138,2023.8,2023.2,0.75537526]
[1773292622684,0.72105138,2023.6,2023.1,0.75537526]
[1773292624881,0.96810138,2023.7,2023.3,0.75537526]
[1773292625082,0.24705,2023.7,2023.3,0.75537526]
[1773292625286,0.72105138,2023.8,2023.3,0.75537526]
[1773292625583,0.72105138,2023.9,2023.5,0.75537526]
[1773292628286,0.72105138,2023.9,2023.2,7.75915037]
[1773292628591,0.72105138,2023.8,2023.3,0.75537526]
[1773292629085,0.72105138,2023.8,2023.2,7.75915037]
[1773292629086,0.72105138,2023.6,2023.2,0.75537526]
[1773292629484,0.72105138,2023.6,2023.1,0.75537526]
[1773292630985,0.72105138,2023.6,2023.2,0.75537526]
[1773292632187,0.96810138,2023.8,2023.2,0.75537526]
[1773292632393,0.72105138,2023.7,2023.2,0.75537526]
[1773292652510,0.71086286,2023.3,2023.0,0.24725654]
[1773292652710,0.71086286,2023.3,2023.0,0.75464007]
[1773292652904,0.71086286,2023.4,2023.0,0.75464007]
[1773292653408,0.71086286,2023.5,2023.0,0.75464007]
[1773292654309,0.71086286,2023.4,2022.9,0.75464007]
[1773292661414,0.71086286,2023.5,2023.0,0.75464007]
[1773292662612,6.08273893,2023.6,2023.1,1.35693258]
[1773292662814,0.24707,2023.6,2023.2,0.73126903]
[1773292663015,0.24707,2023.6,2023.2,2.08820161]
[1773292663212,0.24707,2023.6,2023.3,0.73126903]
[1773292663519,6.472,2023.7,2023.3,0.73126903]
[1773292663719,0.24707,2023.6,2023.3,0.73126903]
[1773292671524,6.472,2023.7,2023.3,0.73126903]
[1773292671720,7.18162726,2024.0,2023.5,0.78123007]
[1773292671921,6.472,2024.1,2023.7,0.78123007]
[1773292673121,7.18162726,2024.1,2023.7,0.78123007]
[1773292673327,6.472,2024.1,2023.7,0.78123007]
[1773292674123,7.18162726,2024.1,2023.7,0.78123007]
[1773292674630,6.472,2024.1,2023.7,0.78123007]
[1773292675524,6.472,2024.1,2023.8,0.78123007]
[1773292675724,6.472,2024.1,2024.0,0.78123007]
[1773292675928,0.95661726,2024.3,2024.0,0.78123007]
[1773292677232,6.47588499,2024.4,2024.0,0.78123007]
[1773292677442,0.70962726,2024.7,2024.2,0.78123007]
[1773292677638,0.70962726,2024.7,2024.0,0.78123007]
[1773292677837,0.70962726,2024.7,2023.9,1.35693258]
[1773292677838,0.70962726,2024.1,2023.7,0.78123007]
[1773292678743,0.71398174,2024.1,2023.7,0.78123007]
[1773292679442,0.00435448,2024.1,2023.7,0.78123007]
[1773292680342,6.472,2024.3,2023.8,0.78123007]
[1773292680544,7.18162726,2024.3,2023.8,0.78123007]
[1773292680844,0.70962726,2024.2,2023.8,0.78123007]
[1773292681446,0.71515937,2024.2,2023.8,0.78123007]
[1773292683243,0.00553211,2024.2,2023.9,0.78123007]
[1773292685241,0.71515937,2024.2,2023.9,0.78123007]
[1773292685746,0.71515937,2024.2,2023.7,0.78123007]
[1773292688939,0.71515937,2024.2,2023.6,1.03113123]
[1773292690351,0.71515937,2024.2,2023.6,0.78123007]
[1773292692355,0.70962726,2024.0,2023.4,0.78123007]
[1773292694550,0.70962726,2024.0,2023.5,0.78123007]
[1773292703649,0.24701,2024.1,2023.5,0.78123007]
[1773292703850,0.67075551,2024.0,2023.5,0.78123007]
[1773292707255,0.67075551,2024.0,2023.4,0.91001006]
[1773292709058,0.67075551,2024.0,2023.5,0.66663259]
[1773292718264,0.67075551,2024.1,2023.5,0.66663259]
[1773292720570,0.25252211,2024.2,2023.6,0.66663259]
[1773292721572,0.92040492,2024.2,2023.6,0.66663259]
[1773292727170,0.25252211,2024.2,2023.6,0.66663259]
[1773292727366,0.25252211,2024.2,2023.7,0.68642352]
[1773292727560,0.66788281,2024.5,2023.8,0.68642352]
[1773292727963,0.91482281,2024.7,2023.9,0.68642352]
[1773292728165,0.91482281,2024.7,2024.0,0.68642352]
[1773292728669,0.92061699,2024.7,2024.0,0.68642352]
[1773292729071,0.66788281,2024.6,2024.0,0.68642352]
[1773292731172,0.7109084,2024.4,2024.0,0.68642352]
[1773292731474,0.7109084,2024.4,2023.8,0.71895588]
[1773292732372,0.7109084,2024.4,2023.9,0.71895588]
[1773292733869,0.7109084,2024.4,2023.8,0.9711789]
[1773292740178,0.7109084,2024.4,2023.9,0.71895588]
[1773292743881,0.24696,2024.5,2023.9,0.71895588]
[1773292744984,0.9578684,2024.5,2023.9,0.71895588]
[1773292745185,0.7109084,2024.4,2023.9,0.71895588]
[1773292758389,0.7109084,2024.4,2023.8,0.25222302]
[1773292758590,0.7109084,2024.4,2023.9,0.71895588]
[1773292763694,0.68544218,2024.2,2023.9,0.71895588]
[1773292766695,0.68544218,2024.2,2023.8,0.72608354]
[1773292771098,0.68544218,2024.4,2023.9,0.72608354]
[1773292771398,0.93240218,2024.5,2023.9,0.72608354]
[1773292771593,0.68544218,2024.5,2024.1,0.72608354]
[1773292773900,0.68544218,2024.4,2024.0,0.72608354]
[1773292774795,0.68544218,2024.2,2023.8,7.75915037]
[1773292774999,0.68544218,2024.2,2023.8,0.72608354]
[1773292792722,0.69190672,2024.4,2023.8,0.72608354]
[1773292802518,0.69190672,2023.9,2023.3,0.6964175]
[1773292802725,0.69190672,2023.6,2023.2,0.94609596]
[1773292802922,0.69190672,2023.6,2023.2,0.24967846]
[1773292803130,0.69190672,2023.6,2023.1,0.6964175]
[1773292803624,0.69190672,2023.6,2023.1,0.94052337]
[1773292804225,0.69190672,2023.6,2022.9,0.6964175]
[1773292804426,0.69190672,2023.4,2022.9,0.6964175]
[1773292805030,0.69190672,2023.2,2022.8,0.70098664]
[1773292805235,0.69691326,2023.2,2022.8,0.70098664]
[1773292805932,0.69190672,2023.1,2022.8,0.70098664]
[1773292806229,0.69190672,2023.1,2022.5,9.1150546]
[1773292806230,0.69190672,2023.1,2022.7,0.44608509]
[1773292806622,0.69190672,2023.1,2022.8,0.19666878]
[1773292807129,0.69190672,2023.1,2022.8,0.20023978]
[1773292807527,0.94403326,2023.2,2022.8,0.20023978]
[1773292807933,0.00500654,2023.2,2022.8,0.20023978]
[1773292808329,0.69190672,2023.4,2022.8,0.20023978]
[1773292809233,0.69721911,2023.4,2022.8,0.20023978]
[1773292809828,0.00531239,2023.4,2022.8,0.20023978]
[1773292812030,0.69721911,2023.4,2022.8,0.003571]
[1773292814238,0.69721911,2023.4,2022.8,0.20663146]
[1773292814640,0.69721911,2023.4,2023.0,0.20132798]
[1773292815835,0.00531239,2023.4,2023.0,0.20132798]
[1773292816340,6.473,2023.7,2023.0,0.20132798]
[1773292816341,0.69190672,2023.6,2023.0,0.20132798]
[1773292816536,7.16490672,2023.7,2023.0,0.20132798]
[1773292817036,0.69190672,2023.6,2023.0,0.20132798]
[1773292817235,0.69694425,2023.6,2023.0,0.20132798]
[1773292819641,0.69694425,2023.6,2022.8,0.20307259]
[1773292823543,0.70312166,2023.4,2022.8,0.003571]
[1773292824037,0.70312166,2023.2,2022.8,0.003571]
[1773292824240,0.70312166,2023.2,2022.7,0.44666127]
[1773292824439,0.70312166,2023.2,2022.8,0.19621745]
[1773292824635,0.70312166,2023.5,2022.8,0.19621745]
[1773292825342,0.70312166,2023.5,2022.8,0.20097353]
[1773292827041,0.70312166,2023.5,2022.8,0.26342742]
[1773292831248,0.70312166,2023.3,2022.8,0.26342742]
[1773292834646,0.70312166,2023.3,2022.8,0.00475608]
[1773292834847,0.70312166,2023.3,2022.8,0.26874206]
[1773292835649,0.24709,2023.4,2022.8,0.26874206]
[1773292835850,0.95021166,2023.4,2022.8,0.26874206]
[1773292837942,0.70312166,2023.3,2022.8,0.26874206]
[1773292838252,0.70312166,2023.3,2022.8,0.00475608]
[1773292839453,0.70312166,2023.3,2022.8,0.26705005]
[1773292839958,0.70312166,2023.3,2022.8,0.00475608]
[1773292843255,0.70657622,2023.1,2022.8,0.00475608]
[1773292843455,0.70657622,2023.1,2022.7,0.25038282]
[1773292843646,0.70657622,2023.1,2022.6,8.01386647]
[1773292843849,0.70657622,2023.1,2022.5,7.75915037]
[1773292844049,0.70657622,2023.1,2022.5,8.01354136]
[1773292844455,0.70657622,2023.1,2022.5,8.01763599]
[1773292844851,0.70657622,2023.1,2022.6,0.25379938]
[1773292847357,0.70657622,2023.1,2022.6,8.01294975]
[1773292851160,0.70657622,2023.1,2022.7,0.24981844]
[1773292851854,0.70657622,2023.1,2022.6,7.75915037]
[1773292852061,0.70657622,2023.1,2022.5,8.00649664]
[1773292853160,0.70657622,2023.1,2022.5,8.25397233]
[1773292853359,0.70657622,2023.1,2022.5,0.49482196]
[1773292858361,0.70657622,2023.1,2022.6,0.24826074]
[1773292860164,0.70657622,2023.1,2022.5,0.49506265]
[1773292860661,0.70657622,2023.1,2022.5,0.24734627]
[1773292861657,0.70657622,2023.1,2022.5,0.00409463]
[1773292861856,0.70657622,2023.1,2022.3,7.75915037]
[1773292862257,0.70657622,2023.1,2022.3,8.01082449]
[1773292862659,0.70657622,2023.1,2022.4,0.25252673]
[1773292862854,0.70657622,2023.1,2022.4,0.25685182]
[1773292864767,0.71053573,2022.9,2022.4,0.00432509]
[1773292864961,0.71053573,2022.5,2022.0,7.75915037]
[1773292865169,0.71053573,2022.5,2021.9,0.25238207]
[1773292865363,0.71053573,2022.5,2021.9,0.49683064]
[1773292865863,0.71053573,2022.5,2021.9,0.50181299]
[1773292867067,0.71053573,2022.5,2022.0,0.32755463]
[1773292886681,0.71053573,2022.5,2021.9,1.60778913]
[1773292886882,0.67005301,2022.3,2021.9,0.00498235]
[1773292887180,0.67005301,2022.3,2021.7,1.75939915]
[1773292888092,0.67005301,2022.3,2021.7,1.76300234]
[1773292888689,0.67005301,2022.3,2021.8,0.40225086]
[1773292891384,0.67005301,2022.2,2021.5,1.76041874]
[1773292892392,0.67005301,2022.0,2021.5,0.00613478]
[1773292892689,0.67384551,2022.0,2021.5,0.00613478]
[1773292893786,0.67384551,2022.0,2021.5,1.36449299]
[1773292894689,0.67384551,2022.0,2021.5,1.78492728]
[1773292894889,0.67384551,2022.0,2021.5,0.42656907]
[1773292895185,0.67384551,2022.0,2021.5,1.78492728]
[1773292895392,0.91730301,2022.1,2021.8,0.6814066]
[1773292895787,0.67005301,2022.0,2021.7,2.03976481]
[1773292895992,0.67005301,2022.0,2021.6,0.6814066]
[1773292896492,0.67581367,2022.0,2021.6,0.6814066]
[1773292896694,0.67581367,2022.0,2021.5,2.04589959]
[1773292896889,0.67581367,2022.0,2021.6,0.6814066]
[1773292897894,0.67581367,2022.0,2021.7,0.6814066]
[1773292898089,0.67581367,2022.0,2021.5,1.36449299]
[1773292898296,0.67581367,2022.0,2021.5,0.00613478]
[1773292899296,0.67005301,2021.8,2021.5,0.00613478]
[1773292899495,0.67005301,2021.8,2021.3,0.6814066]
[1773292899893,0.67005301,2021.8,2021.1,0.6814066]
[1773292900095,0.67005301,2021.6,2021.0,0.6814066]
[1773292900498,0.67005301,2021.6,2021.0,0.68619473]
[1773292900692,0.67005301,2021.6,2021.0,0.00478813]
[1773292901795,0.67005301,2021.6,2021.0,0.69468579]
[1773292902800,0.67005301,2021.6,2021.0,0.00478813]
[1773292905500,2.01950553,2021.3,2020.6,0.68989766]
[1773292905700,7.38348732,2021.4,2020.7,0.68989766]
[1773292905906,0.66114732,2021.3,2020.7,0.68989766]
[1773292906599,2.01950553,2021.3,2020.7,0.00447581]
[1773292906799,0.66114732,2020.8,2020.3,0.68989766]
[1773292907198,0.66114732,2020.8,2020.0,0.68989766]
[1773292907401,0.66114732,2020.6,2020.0,0.68989766]
[1773292907801,0.66114732,2020.6,2020.0,0.69505701]
[1773292908002,0.66114732,2020.4,2020.0,0.00515935]
[1773292908203,0.66565291,2020.4,2020.0,0.69505701]
[1773292908412,0.66114732,2020.7,2020.3,0.68989766]
[1773292909513,0.66114732,2020.2,2019.7,0.68989766]
[1773292910502,0.66114732,2020.2,2019.7,0.69458722]
[1773292911815,0.66114732,2020.2,2019.7,0.00468956]
[1773292912011,8.08082821,2020.3,2019.1,1.34753806]
[1773292912012,0.67818958,2020.0,2019.4,0.68854454]
[1773292912211,0.67818958,2020.0,2019.3,2.04690275]
[1773292912814,0.67818958,2020.0,2019.4,0.68854454]
[1773292913008,0.67818958,2020.0,2019.4,0.69302142]
[1773292913316,0.67818958,2020.0,2019.6,0.68854454]
[1773292913914,0.67818958,2020.0,2019.5,2.04690275]
[1773292914213,0.67818958,2020.0,2019.7,2.04690275]
[1773292914514,6.476,2020.1,2019.9,1.22128257]
[1773292914816,0.0016376,2020.2,2019.7,2.08038896]
[1773292915214,0.0016376,2020.2,2019.8,0.72203075]
[1773292915418,0.0016376,2020.2,2019.7,2.0804734]
[1773292915717,0.0016376,2020.2,2019.8,0.72211519]
[1773292917620,0.0016376,2020.2,2019.5,2.08017822]
[1773292917820,0.00689331,2020.1,2019.5,2.08017822]
[1773292918220,0.00689331,2020.1,2019.6,0.72182001]
[1773292918616,0.0070415,2020.3,2019.8,0.72253152]
[1773292918822,6.4830415,2020.3,2019.8,0.72253152]
[1773292919722,0.00843104,2020.2,2019.8,0.72253152]
[1773292920224,6.476,2020.3,2019.8,0.72253152]
[1773292920425,0.25590104,2020.4,2020.1,2.08097093]
[1773292920725,0.25590104,2020.4,2020.1,2.07331133]
[1773292920923,0.25590104,2020.4,2020.1,0.71495312]
[1773292921826,0.11090104,2020.4,2020.0,0.71502427]
[1773292922125,0.10247,2020.4,2020.0,0.71502427]
[1773292922524,0.10247,2020.4,2020.2,0.71307412]
[1773292923818,0.10247,2020.4,2019.9,1.35835821]
[1773292924018,0.78065958,2020.4,2020.0,0.68854454]
[1773292925625,0.68317174,2020.7,2020.4,0.68854454]
[1773292925830,5.72566648,2020.7,2020.4,0.68854454]
[1773292926327,5.79142794,2020.7,2020.4,0.68854454]
[1773292926531,0.06497801,2020.6,2020.3,0.6989231]
[1773292926925,0.06918092,2020.6,2020.1,1.35835821]
[1773292927126,0.06918092,2020.6,2020.1,0.6989231]
[1773292927623,0.06918092,2020.6,2020.2,0.69904121]
[1773292927824,0.00420291,2020.6,2020.2,0.69904121]
[1773292928030,6.54675026,2020.7,2020.2,0.69904121]
[1773292928222,6.476,2020.7,2020.2,0.69904121]
[1773292928632,6.476,2020.7,2020.4,0.69889147]
[1773292928928,0.07349988,2020.6,2019.8,0.68854454]
[1773292929132,0.07349988,2020.6,2020.0,0.68854454]
[1773292929527,0.2845758,2020.4,2020.0,0.68854454]
[1773292929724,0.2845758,2020.4,2019.5,0.68854454]
[1773292929922,0.53367276,2020.3,2019.6,0.68854454]
[1773292930128,0.24747,2020.3,2019.6,0.68854454]
[1773292930428,0.52923652,2020.3,2019.7,0.68854454]
[1773292930628,0.28176652,2020.2,2019.7,0.68854454]
[1773292930836,0.53181286,2020.3,2019.7,0.68854454]
[1773292932834,0.24747,2020.3,2019.7,0.68854454]
[1773292936036,0.30243868,2020.2,2019.7,0.68854454]
[1773292936839,0.55255424,2020.3,2019.7,0.68854454]
[1773292937540,0.24747,2020.3,2019.7,0.68854454]
[1773292938746,0.30665766,2020.5,2019.7,0.68854454]
[1773292940047,6.78385818,2020.6,2019.9,0.68854454]
[1773292940442,0.31930471,2020.5,2019.9,0.68854454]
[1773292941344,0.32158472,2020.4,2019.9,0.68854454]
[1773292942347,0.32158472,2020.4,2019.6,0.67767072]
[1773292944552,0.33009121,2020.3,2019.6,0.67767072]
[1773292946450,6.52316558,2020.5,2019.7,0.67767072]
[1773292946652,0.5869165,2020.5,2019.7,0.67767072]
[1773292949255,0.34329176,2020.4,2019.7,0.67767072]
[1773292950352,0.24747,2020.3,2019.7,0.67767072]
[1773292950755,0.59857015,2020.3,2019.7,0.67767072]
[1773292953747,0.35880484,2020.2,2019.7,0.67767072]
[1773292954658,0.24747,2020.3,2019.7,0.67767072]
[1773292954858,0.35967534,2020.2,2019.7,0.67767072]
[1773292955262,0.24747,2020.3,2019.7,0.67767072]
[1773292955559,0.60699373,2020.3,2019.7,0.67767072]
[1773292956858,0.36417339,2020.2,2019.7,0.67767072]
[1773292958464,0.36565867,2020.0,2019.6,0.67767072]
[1773292958654,0.36565867,2020.0,2019.5,0.24558058]
[1773292958859,0.36752487,2019.8,2019.4,0.6821476]
[1773292959460,0.36738029,2019.7,2019.1,8.43682109]
[1773292959763,0.36738029,2019.7,2019.1,0.67767072]
[1773292960559,0.36738029,2019.7,2019.1,0.68242092]
[1773292963763,0.24752,2019.9,2019.1,0.68242092]
[1773292964467,0.61782226,2019.9,2019.1,0.68242092]
[1773292965263,0.37992862,2019.8,2019.1,0.68242092]
[1773292965457,0.24752,2019.9,2019.1,0.68242092]
[1773292966367,0.38249603,2019.8,2019.1,0.68242092]
[1773292966567,0.62772647,2019.9,2019.1,0.68242092]
[1773292967064,0.24752,2019.9,2019.1,0.68242092]
[1773292967364,0.24748,2020.2,2019.3,0.71512919]
[1773292967761,0.38436662,2020.1,2019.3,0.71512919]
[1773292969370,0.63111259,2020.2,2019.3,0.71512919]
[1773292969868,0.24748,2020.2,2019.3,0.71512919]
[1773292970173,0.38517377,2020.3,2019.3,0.71512919]
[1773292970370,0.38517377,2020.3,2019.5,0.75667208]
[1773292970563,0.38322353,2020.4,2019.5,0.75667208]
[1773292971870,6.86321339,2020.5,2019.5,0.75667208]
[1773292972373,6.86321339,2020.5,2019.7,0.75667208]
[1773292973272,0.38621339,2020.5,2019.7,0.75667208]
[1773292973473,0.00537265,2020.7,2019.9,0.75667208]
[1773292974374,0.00537265,2020.7,2020.1,0.75667208]
[1773292974774,0.39828269,2021.2,2020.1,0.75667208]
[1773292975470,0.39828269,2021.2,2020.3,0.75667208]
[1773292975776,0.40263528,2021.2,2020.3,0.75667208]
[1773292976068,0.00435259,2021.2,2020.3,0.75667208]
[1773292976471,0.00435259,2021.2,2020.5,0.75667208]
[1773292977973,0.40536668,2021.0,2020.5,0.75667208]
[1773292978177,0.24737,2021.1,2020.5,0.75667208]
[1773292978379,0.40681099,2021.0,2020.5,0.75667208]
[1773292979477,0.24737,2021.1,2020.5,0.75667208]
[1773292982780,0.65566944,2021.1,2020.5,0.75667208]
[1773292983483,0.24737,2021.1,2020.5,0.75667208]
[1773292983877,0.00435259,2021.2,2020.5,0.75667208]
[1773292985279,0.41077391,2021.5,2020.5,0.75667208]
[1773292986180,0.41519837,2021.5,2020.5,0.75667208]
[1773292987577,0.00442446,2021.5,2020.5,0.75667208]
[1773292988982,0.24736,2021.2,2019.9,7.75915037]
[1773292989179,0.24741,2020.8,2020.0,0.75667208]
[1773292989387,0.45358804,2020.5,2020.0,0.75667208]
[1773292994987,0.24746,2020.4,2019.3,7.75915037]
[1773292995284,0.45489598,2020.3,2019.4,0.75667208]
[1773292999384,0.44932335,2020.1,2019.4,0.75667208]
[1773293002789,0.24748,2020.2,2019.4,0.75667208]
[1773293002985,0.68960583,2020.2,2019.4,0.75667208]